fUSD/lending_fUSD_20240519
["ID","MTS","AMOUNT","RATE_DAILY","PERIOD"]
[327464502,1716085851751,-500.0,0.00027671,2]
[327464503,1716085851760,-1794.16,0.00027671,2]
[327464504,1716085851770,-663.76,0.00027671,2]
[327464505,1716085851779,-500.0,0.00027671,2]
[327464506,1716085851788,-500.0,0.00027671,2]
[327464507,1716085851799,-500.0,0.00027671,2]
[327464508,1716085851807,-500.0,0.00027671,2]
[327464509,1716085851818,-500.0,0.00027671,2]
[327464510,1716085851827,-500.0,0.00027671,2]
[327464511,1716085851835,-690.48,0.00027671,2]
[327464512,1716085851845,-500.0,0.00027671,2]
[327464513,1716085851854,-151.0,0.00027671,7]
[327464514,1716085851864,-1472.71,0.00027671,2]
[327464515,1716085851875,-500.0,0.00027671,2]
[327464516,1716085851885,-500.0,0.00027671,2]
[327464517,1716085851894,-151.0,0.00027671,7]
[327464518,1716085851903,-500.0,0.00027671,2]
[327464519,1716085851911,-500.0,0.00027671,2]
[327464520,1716085851920,-3065.61,0.00027671,2]
[327464521,1716085851929,-500.0,0.00027671,2]
[327464522,1716085851938,-500.0,0.00027671,2]
[327464523,1716085851949,-500.0,0.00027671,2]
[327464524,1716085851958,-157.051911,0.00027748,14]
[327464525,1716085851968,-210.0,0.00027796,2]
[327464526,1716085851977,-252.605,0.00027796,2]
[327464527,1716085851987,-193.658,0.00027796,2]
[327464528,1716085851996,-161.0,0.00027796,2]
[327464529,1716085852006,-161.547,0.00027796,2]
[327464530,1716085852016,-207.132,0.00027796,2]
[327464531,1716085852026,-194.471,0.00027796,2]
[327464532,1716085852035,-258.323,0.00027796,2]
[327464533,1716085852044,-258.0,0.00027796,2]
[327464534,1716085852054,-273.376,0.00027796,2]
[327464535,1716085852063,-235.302,0.00027796,2]
[327464536,1716085852073,-152.0,0.00027796,2]
[327464537,1716085852082,-152.229,0.00027796,2]
[327464538,1716085852091,-283.373,0.00027796,2]
[327464539,1716085852100,-150.034,0.00027796,2]
[327464540,1716085852109,-208.0,0.0002781,2]
[327464541,1716085852117,-209.0,0.0002781,2]
[327464542,1716085852126,-415.34,0.00027836,2]
[327464543,1716085852135,-415.34,0.00027836,2]
[327464544,1716085852144,-420.97,0.00027836,2]
[327464545,1716085852153,-193.77,0.00027836,2]
[327464546,1716085852162,-2400.0,0.000279,10]
[327464547,1716085852171,-500.0,0.00027945,2]
[327464548,1716085852182,-500.0,0.00027945,2]
[327464549,1716085852191,-500.0,0.00027945,2]
[327464550,1716085852200,-275.4295843,0.00027945,2]
[327464551,1716085852209,-500.0,0.00027945,2]
[327464552,1716085852218,-500.0,0.00027945,2]
[327464553,1716085852227,-500.0,0.00027945,2]
[327464554,1716085852236,-500.0,0.00027945,2]
[327464555,1716085852245,-500.0,0.00027945,2]
[327464556,1716085852254,-500.0,0.00027945,2]
[327464557,1716085852264,-500.0,0.00027945,2]
[327464558,1716085852275,-500.0,0.00027945,2]
[327464559,1716085852285,-696.98,0.00027945,2]
[327464560,1716085852295,-500.0,0.00027945,2]
[327464561,1716085852307,-611.79,0.00027945,2]
[327464562,1716085852317,-500.0,0.00027945,2]
[327464563,1716085852327,-548.87,0.00027945,2]
[327464564,1716085852337,-208.06532846,0.00027945,2]
[327464565,1716085852347,-500.0,0.00027945,2]
[327464566,1716085852356,-500.0,0.00027945,2]
[327464567,1716085852366,-500.0,0.00027945,2]
[327464568,1716085852376,-500.0,0.00027945,2]
[327464569,1716085852385,-500.0,0.00027945,2]
[327464570,1716085852396,-500.0,0.00027945,2]
[327464571,1716085852405,-500.0,0.00027945,2]
[327464572,1716085852417,-500.0,0.00027945,2]
[327464573,1716085852426,-500.0,0.00027945,2]
[327464574,1716085852436,-500.0,0.00027945,2]
[327464575,1716085852445,-500.0,0.00027945,2]
[327464576,1716085852454,-500.0,0.00027945,2]
[327464577,1716085852463,-500.0,0.00027945,2]
[327464578,1716085852472,-562.85,0.00027945,2]
[327464579,1716085852481,-500.0,0.00027945,2]
[327464580,1716085852497,-571.32,0.00027945,2]
[327464581,1716085852505,-500.0,0.00027945,2]
[327464582,1716085852514,-503.4,0.00027945,2]
[327464583,1716085852523,-500.0,0.00027945,2]
[327464584,1716085852533,-500.0,0.00027945,2]
[327464585,1716085852542,-162.77,0.00027945,2]
[327464586,1716085852551,-500.0,0.00027945,2]
[327464587,1716085852560,-500.0,0.00027945,2]
[327464588,1716085852569,-525.96,0.00027945,2]
[327464589,1716085852582,-500.0,0.00027945,2]
[327464590,1716085852591,-500.0,0.00027945,2]
[327464591,1716085852600,-500.0,0.00027945,2]
[327464592,1716085852609,-500.0,0.00027945,2]
[327464593,1716085852619,-500.0,0.00027945,2]
[327464594,1716085852627,-500.0,0.00027945,2]
[327464595,1716085852636,-1032.49,0.00027945,2]
[327464596,1716085852645,-1349.16,0.00027945,2]
[327464597,1716085852655,-500.0,0.00027945,2]
[327464598,1716085852663,-500.0,0.00027945,2]
[327464599,1716085852672,-500.0,0.00027945,2]
[327464600,1716085852681,-606.77,0.00027945,2]
[327464601,1716085852690,-553.62,0.00027945,2]
[327464602,1716085852699,-500.0,0.00027945,2]
[327464603,1716085852709,-500.0,0.00027945,2]
[327464604,1716085852718,-500.0,0.00027945,2]
[327464605,1716085852727,-500.0,0.00027945,2]
[327464606,1716085852736,-500.0,0.00027945,2]
[327464607,1716085852745,-1051.87,0.00027945,2]
[327464608,1716085852755,-500.0,0.00027945,2]
[327464609,1716085852764,-500.0,0.00027945,2]
[327464610,1716085852773,-500.0,0.00027945,2]
[327464611,1716085852782,-500.0,0.00027945,2]
[327464612,1716085852791,-500.0,0.00027945,2]
[327464613,1716085852800,-500.0,0.00027945,2]
[327464614,1716085852810,-500.0,0.00027945,2]
[327464615,1716085852819,-500.0,0.00027945,2]
[327464616,1716085852829,-376.08806361,0.00027945,2]
[327464617,1716085852838,-274.22302904,0.00027945,2]
[327464618,1716085852847,-500.0,0.00027945,2]
[327464619,1716085852856,-517.16973166,0.00027945,2]
[327464620,1716085852866,-502.38501702,0.00027945,2]
[327464621,1716085852876,-500.0,0.00027945,2]
[327464622,1716085852886,-701.64,0.00027945,2]
[327464623,1716085852895,-500.0,0.00027945,2]
[327464624,1716085852904,-500.0,0.00027945,2]
[327464625,1716085852913,-500.0,0.00027945,2]
[327464626,1716085852922,-500.0,0.00027945,2]
[327464627,1716085852931,-593.06,0.00027945,2]
[327464628,1716085852940,-500.0,0.00027945,2]
[327464629,1716085852949,-500.0,0.00027945,2]
[327464630,1716085852958,-500.0,0.00027945,2]
[327464631,1716085852967,-507.04,0.00027945,2]
[327464632,1716085852976,-500.0,0.00027945,2]
[327464633,1716085852985,-1883.54,0.00027945,2]
[327464634,1716085852995,-500.0,0.00027945,2]
[327464635,1716085853003,-666.92,0.00027945,2]
[327464636,1716085853013,-500.0,0.00027945,2]
[327464637,1716085853022,-656.73,0.00027945,2]
[327464638,1716085853031,-1592.97,0.00027945,2]
[327464639,1716085853040,-1390.92,0.00027945,2]
[327464640,1716085853049,-500.0,0.00027945,2]
[327464641,1716085853058,-500.0,0.00027945,2]
[327464642,1716085853067,-500.0,0.00027945,2]
[327464643,1716085853076,-500.0,0.00027945,2]
[327464644,1716085853085,-500.0,0.00027945,2]
[327464645,1716085853095,-500.0,0.00027945,2]
[327464646,1716085853104,-3702.21,0.00027945,2]
[327464647,1716085853113,-612.6,0.00027945,2]
[327464648,1716085853122,-3199.39,0.00027945,2]
[327464649,1716085853131,-523.99539822,0.00027945,2]
[327464650,1716085853139,-500.0,0.00027945,2]
[327464651,1716085853148,-500.0,0.00027945,2]
[327464652,1716085853157,-500.0,0.00027945,2]
[327464653,1716085853166,-1388.18,0.00027945,2]
[327464654,1716085853175,-1511.36,0.00027945,2]
[327464655,1716085853183,-500.0,0.00027945,2]
[327464656,1716085853192,-2129.75,0.00027945,2]
[327464657,1716085853202,-500.0,0.00027945,2]
[327464658,1716085853211,-500.0,0.00027945,2]
[327464659,1716085853219,-1073.96,0.00027945,2]
[327464660,1716085853228,-500.0,0.00027945,2]
[327464661,1716085853238,-690.65,0.00027945,2]
[327464662,1716085853246,-500.0,0.00027945,2]
[327464663,1716085853255,-2270.06,0.00027945,2]
[327464664,1716085853265,-6532.15,0.00027945,2]
[327464665,1716085853273,-500.0,0.00027945,2]
[327464666,1716085853282,-500.0,0.00027945,2]
[327464667,1716085853291,-500.0,0.00027945,2]
[327464668,1716085853300,-500.0,0.00027945,2]
[327464669,1716085853309,-894.77,0.00027945,2]
[327464670,1716085853318,-500.0,0.00027945,2]
[327464671,1716085853326,-500.0,0.00027945,2]
[327464672,1716085853335,-500.0,0.00027945,2]
[327464673,1716085853344,-500.0,0.00027945,2]
[327464674,1716085853353,-500.0,0.00027945,2]
[327464675,1716085853362,-500.0,0.00027945,2]
[327464676,1716085853371,-578.57,0.00027945,2]
[327464677,1716085853380,-500.0,0.00027945,2]
[327464678,1716085853388,-500.0,0.00027945,2]
[327464679,1716085853398,-500.0,0.00027945,2]
[327464680,1716085853407,-500.0,0.00027945,2]
[327464681,1716085853415,-500.0,0.00027945,2]
[327464682,1716085853424,-1921.99,0.00027945,2]
[327464683,1716085853434,-8416.22,0.00027945,2]
[327464684,1716085853443,-500.0,0.00027945,2]
[327464685,1716085853452,-500.0,0.00027945,2]
[327464686,1716085853462,-980.05,0.00027945,2]
[327464687,1716085853471,-500.0,0.00027945,2]
[327464688,1716085853480,-500.0,0.00027945,2]
[327464689,1716085853494,-500.0,0.00027945,2]
[327464690,1716085853503,-670.91,0.00027945,2]
[327464691,1716085853513,-723.44,0.00027945,2]
[327464692,1716085853522,-1815.36,0.00027945,2]
[327464693,1716085853532,-572.44,0.00027945,2]
[327464694,1716085853542,-500.0,0.00027945,2]
[327464695,1716085853552,-500.0,0.00027945,2]
[327464696,1716085853561,-679.69,0.00027945,2]
[327464697,1716085853573,-500.0,0.00027945,2]
[327464698,1716085853583,-500.0,0.00027945,2]
[327464699,1716085853593,-500.0,0.00027945,2]
[327464700,1716085853602,-500.0,0.00027945,2]
[327464701,1716085853612,-757.0,0.00027945,2]
[327464702,1716085853621,-526.90518151,0.00027945,2]
[327464703,1716085853631,-986.68,0.00027945,2]
[327464704,1716085853641,-500.0,0.00027945,2]
[327464705,1716085853651,-1095.82,0.00027945,2]
[327464706,1716085853661,-500.0,0.00027945,2]
[327464707,1716085853670,-1045.42,0.00027945,2]
[327464708,1716085853679,-500.0,0.00027945,2]
[327464709,1716085853689,-634.84,0.00027945,2]
[327464710,1716085853698,-564.16,0.00027945,2]
[327464711,1716085853708,-500.0,0.00027945,2]
[327464712,1716085853718,-1005.81,0.00027945,2]
[327464713,1716085853727,-500.0,0.00027945,2]
[327464714,1716085853736,-1148.74,0.00027945,2]
[327464715,1716085853746,-863.33,0.00027945,2]
[327464716,1716085853755,-1540.44,0.00027945,2]
[327464717,1716085853766,-1101.78,0.00027945,2]
[327464718,1716085853775,-500.0,0.00027945,2]
[327464719,1716085853784,-500.0,0.00027945,2]
[327464720,1716085853794,-518.34,0.00027945,2]
[327464721,1716085853803,-500.0,0.00027945,2]
[327464722,1716085853812,-500.0,0.00027945,2]
[327464723,1716085853822,-1055.9,0.00027945,2]
[327464724,1716085853831,-500.0,0.00027945,2]
[327464725,1716085853841,-611.2,0.00027945,2]
[327464726,1716085853850,-500.0,0.00027945,2]
[327464727,1716085853860,-500.0,0.00027945,2]
[327464728,1716085853870,-519.9,0.00027945,2]
[327464729,1716085853879,-845.3,0.00027945,2]
[327464730,1716085853888,-492.11568871,0.00027945,2]
[327464731,1716085853898,-500.0,0.00027945,2]
[327464732,1716085853907,-500.0,0.00027945,2]
[327464733,1716085853916,-500.0,0.00027945,2]
[327464734,1716085853925,-1331.68,0.00027945,2]
[327464735,1716085853935,-515.85,0.00027945,2]
[327464736,1716085853944,-500.0,0.00027945,2]
[327464737,1716085853954,-764.74,0.00027945,2]
[327464738,1716085853963,-766.32,0.00027945,2]
[327464739,1716085853972,-500.0,0.00027945,2]
[327464740,1716085853981,-500.0,0.00027945,2]
[327464741,1716085853991,-500.0,0.00027945,2]
[327464742,1716085854000,-500.0,0.00027945,2]
[327464743,1716085854010,-500.0,0.00027945,2]
[327464744,1716085854019,-600.54,0.00027945,2]
[327464745,1716085854028,-1277.87,0.00027945,2]
[327464746,1716085854037,-500.0,0.00027945,2]
[327464747,1716085854046,-500.0,0.00027945,2]
[327464748,1716085854056,-888.42,0.00027945,2]
[327464749,1716085854065,-1399.26,0.00027945,2]
[327464750,1716085854075,-432.93110458,0.00027945,2]
[327464751,1716085854084,-500.0,0.00027945,2]
[327464752,1716085854094,-500.0,0.00027945,2]
[327464753,1716085854103,-779.91,0.00027945,2]
[327464754,1716085854112,-1265.7,0.00027945,2]
[327464755,1716085854121,-419.55934189,0.00027945,2]
[327464756,1716085854131,-642.41,0.00027945,2]
[327464757,1716085854140,-791.07,0.00027945,2]
[327464758,1716085854149,-2675.79,0.00027945,2]
[327464759,1716085854159,-1862.49,0.00027945,2]
[327464760,1716085854169,-837.67,0.00027945,2]
[327464761,1716085854178,-1022.64,0.00027945,2]
[327464762,1716085854187,-594.36,0.00027945,2]
[327464763,1716085854197,-977.8,0.00027945,2]
[327464764,1716085854207,-2591.14,0.00027945,2]
[327464765,1716085854216,-500.0,0.00027945,2]
[327464766,1716085854226,-1659.65,0.00027945,2]
[327464767,1716085854235,-500.0,0.00027945,2]
[327464768,1716085854246,-500.0,0.00027945,2]
[327464769,1716085854255,-500.0,0.00027945,2]
[327464770,1716085854265,-769.11,0.00027945,2]
[327464771,1716085854274,-1849.64,0.00027945,2]
[327464772,1716085854283,-3921.05,0.00027945,2]
[327464773,1716085854293,-3411.11,0.00027945,2]
[327464774,1716085854302,-656.14,0.00027945,2]
[327464775,1716085854312,-500.0,0.00027945,2]
[327464776,1716085854321,-5296.98,0.00027945,2]
[327464777,1716085854330,-500.0,0.00027945,2]
[327464778,1716085854339,-500.0,0.00027945,2]
[327464779,1716085854492,-810.55,0.00027945,2]
[327464780,1716085854508,-500.0,0.00027945,2]
[327464781,1716085854518,-8770.41,0.00027945,2]
[327464782,1716085854527,-500.0,0.00027945,2]
[327464783,1716085854537,-16460.36,0.00027945,2]
[327464784,1716085854546,-860.7,0.00027945,2]
[327464785,1716085854556,-500.0,0.00027945,2]
[327464786,1716085854565,-1794.16,0.00027945,2]
[327464787,1716085854577,-663.76,0.00027945,2]
[327464788,1716085854586,-500.0,0.00027945,2]
[327464789,1716085854595,-500.0,0.00027945,2]
[327464790,1716085854604,-500.0,0.00027945,2]
[327464791,1716085854614,-500.0,0.00027945,2]
[327464792,1716085854623,-207.30963447,0.00027945,2]
[327464793,1716085854632,-500.0,0.00027945,2]
[327464794,1716085854641,-690.48,0.00027945,2]
[327464795,1716085854652,-500.0,0.00027945,2]
[327464796,1716085854662,-1472.71,0.00027945,2]
[327464797,1716085854672,-500.0,0.00027945,2]
[327464798,1716085854681,-500.0,0.00027945,2]
[327464799,1716085854691,-500.0,0.00027945,2]
[327464800,1716085854700,-500.0,0.00027945,2]
[327464801,1716085854709,-3065.61,0.00027945,2]
[327464802,1716085854719,-500.0,0.00027945,2]
[327464803,1716085854728,-500.0,0.00027945,2]
[327464804,1716085854739,-500.0,0.00027945,2]
[327464805,1716085854748,-150.0,0.00027946,7]
[327464806,1716085854758,-157.051911,0.00028148,16]
[327464807,1716085854767,-1045.72754486,0.00028218,15]
[327464808,1716085854777,-300.0,0.00028218,2]
[327464809,1716085854786,-500.0,0.00028219,2]
[327464810,1716085854796,-500.0,0.00028219,2]
[327464811,1716085854805,-500.0,0.00028219,2]
[327464812,1716085854815,-500.0,0.00028219,2]
[327464813,1716085854824,-500.0,0.00028219,2]
[327464814,1716085854834,-500.0,0.00028219,2]
[327464815,1716085854844,-500.0,0.00028219,2]
[327464816,1716085854854,-500.0,0.00028219,2]
[327464817,1716085854864,-500.0,0.00028219,2]
[327464818,1716085854873,-500.0,0.00028219,2]
[327464819,1716085854883,-500.0,0.00028219,2]
[327464820,1716085854894,-696.98,0.00028219,2]
[327464821,1716085854904,-500.0,0.00028219,2]
[327464822,1716085854913,-611.79,0.00028219,2]
[327464823,1716085854923,-249.41691239,0.00028219,2]
[327464824,1716085854932,-548.87,0.00028219,2]
[327464825,1716085854943,-500.0,0.00028219,2]
[327464826,1716085854953,-500.0,0.00028219,2]
[327464827,1716085854963,-500.0,0.00028219,2]
[327464828,1716085854972,-248.5958922,0.00028219,2]
[327464829,1716085854982,-500.0,0.00028219,2]
[327464830,1716085854992,-593.13727119,0.00028219,2]
[327464831,1716085855002,-500.0,0.00028219,2]
[327464832,1716085855012,-500.0,0.00028219,2]
[327464833,1716085855021,-500.0,0.00028219,2]
[327464834,1716085855031,-464.8219252,0.00028219,2]
[327464835,1716085855041,-500.0,0.00028219,2]
[327464836,1716085855051,-500.0,0.00028219,2]
[327464837,1716085855061,-562.85,0.00028219,2]
[327464838,1716085855071,-500.0,0.00028219,2]
[327464839,1716085855081,-500.0,0.00028219,2]
[327464840,1716085855090,-571.32,0.00028219,2]
[327464841,1716085855100,-500.0,0.00028219,2]
[327464842,1716085855109,-503.4,0.00028219,2]
[327464843,1716085855118,-500.0,0.00028219,2]
[327464844,1716085855127,-500.0,0.00028219,2]
[327464845,1716085855137,-162.77,0.00028219,2]
[327464846,1716085855146,-399.18809912,0.00028219,2]
[327464847,1716085855156,-364.27451504,0.00028219,2]
[327464848,1716085855166,-525.96,0.00028219,2]
[327464849,1716085855175,-500.0,0.00028219,2]
[327464850,1716085855185,-500.0,0.00028219,2]
[327464851,1716085855194,-500.0,0.00028219,2]
[327464852,1716085855204,-226.41193491,0.00028219,2]
[327464853,1716085855213,-500.0,0.00028219,2]
[327464854,1716085855224,-500.0,0.00028219,2]
[327464855,1716085855233,-1032.49,0.00028219,2]
[327464856,1716085855244,-1349.16,0.00028219,2]
[327464857,1716085855253,-500.0,0.00028219,2]
[327464858,1716085855263,-500.0,0.00028219,2]
[327464859,1716085855273,-500.0,0.00028219,2]
[327464860,1716085855283,-606.77,0.00028219,2]
[327464861,1716085855292,-553.62,0.00028219,2]
[327464862,1716085855302,-500.0,0.00028219,2]
[327464863,1716085855312,-500.0,0.00028219,2]
[327464864,1716085855321,-500.0,0.00028219,2]
[327464865,1716085855330,-500.0,0.00028219,2]
[327464866,1716085855340,-500.0,0.00028219,2]
[327464867,1716085855349,-1051.87,0.00028219,2]
[327464868,1716085855359,-500.0,0.00028219,2]
[327464869,1716085855368,-500.0,0.00028219,2]
[327464870,1716085855378,-500.0,0.00028219,2]
[327464871,1716085855387,-500.0,0.00028219,2]
[327464872,1716085855397,-500.0,0.00028219,2]
[327464873,1716085855406,-500.0,0.00028219,2]
[327464874,1716085855416,-500.0,0.00028219,2]
[327464875,1716085855425,-500.0,0.00028219,2]
[327464876,1716085855434,-535.30035159,0.00028219,2]
[327464877,1716085855443,-500.0,0.00028219,2]
[327464878,1716085855453,-701.64,0.00028219,2]
[327464879,1716085855463,-500.0,0.00028219,2]
[327464880,1716085855472,-500.0,0.00028219,2]
[327464881,1716085855482,-500.0,0.00028219,2]
[327464882,1716085855494,-500.0,0.00028219,2]
[327464883,1716085855505,-593.06,0.00028219,2]
[327464884,1716085855515,-500.0,0.00028219,2]
[327464885,1716085855525,-468.82321804,0.00028219,2]
[327464886,1716085855536,-500.0,0.00028219,2]
[327464887,1716085855546,-507.04,0.00028219,2]
[327464888,1716085855556,-500.0,0.00028219,2]
[327464889,1716085855567,-1883.54,0.00028219,2]
[327464890,1716085855580,-500.0,0.00028219,2]
[327464891,1716085855591,-666.92,0.00028219,2]
[327464892,1716085855601,-500.0,0.00028219,2]
[327464893,1716085855612,-656.73,0.00028219,2]
[327464894,1716085855622,-1592.97,0.00028219,2]
[327464895,1716085855633,-1390.92,0.00028219,2]
[327464896,1716085855643,-500.0,0.00028219,2]
[327464897,1716085855653,-500.0,0.00028219,2]
[327464898,1716085855664,-253.10437422,0.00028219,2]
[327464899,1716085855674,-500.0,0.00028219,2]
[327464900,1716085855684,-500.0,0.00028219,2]
[327464901,1716085855693,-3702.21,0.00028219,2]
[327464902,1716085855702,-500.0,0.00028219,2]
[327464903,1716085855712,-612.6,0.00028219,2]
[327464904,1716085855722,-3199.39,0.00028219,2]
[327464905,1716085855731,-500.0,0.00028219,2]
[327464906,1716085855742,-500.0,0.00028219,2]
[327464907,1716085855751,-500.0,0.00028219,2]
[327464908,1716085855760,-1388.18,0.00028219,2]
[327464909,1716085855770,-1511.36,0.00028219,2]
[327464910,1716085855780,-500.0,0.00028219,2]
[327464911,1716085855790,-2129.75,0.00028219,2]
[327464912,1716085855799,-500.0,0.00028219,2]
[327464913,1716085855808,-500.0,0.00028219,2]
[327464914,1716085855818,-1073.96,0.00028219,2]
[327464915,1716085855828,-500.0,0.00028219,2]
[327464916,1716085855837,-690.65,0.00028219,2]
[327464917,1716085855847,-500.0,0.00028219,2]
[327464918,1716085855856,-2270.06,0.00028219,2]
[327464919,1716085855866,-6532.15,0.00028219,2]
[327464920,1716085855875,-500.0,0.00028219,2]
[327464921,1716085855885,-500.0,0.00028219,2]
[327464922,1716085855894,-500.0,0.00028219,2]
[327464923,1716085855904,-500.0,0.00028219,2]
[327464924,1716085855914,-894.77,0.00028219,2]
[327464925,1716085855923,-500.0,0.00028219,2]
[327464926,1716085855933,-500.0,0.00028219,2]
[327464927,1716085855943,-500.0,0.00028219,2]
[327464928,1716085855952,-500.0,0.00028219,2]
[327464929,1716085855962,-500.0,0.00028219,2]
[327464930,1716085855972,-500.0,0.00028219,2]
[327464931,1716085855981,-578.57,0.00028219,2]
[327464932,1716085855990,-500.0,0.00028219,2]
[327464933,1716085855999,-500.0,0.00028219,2]
[327464934,1716085856008,-500.0,0.00028219,2]
[327464935,1716085856018,-500.0,0.00028219,2]
[327464936,1716085856028,-543.33033444,0.00028219,2]
[327464937,1716085856038,-1921.99,0.00028219,2]
[327464938,1716085856048,-8416.22,0.00028219,2]
[327464939,1716085856057,-500.0,0.00028219,2]
[327464940,1716085856067,-500.0,0.00028219,2]
[327464941,1716085856077,-980.05,0.00028219,2]
[327464942,1716085856086,-500.0,0.00028219,2]
[327464943,1716085856096,-500.0,0.00028219,2]
[327464944,1716085856108,-500.0,0.00028219,2]
[327464945,1716085856118,-670.91,0.00028219,2]
[327464946,1716085856128,-723.44,0.00028219,2]
[327464947,1716085856138,-1815.36,0.00028219,2]
[327464948,1716085856148,-572.44,0.00028219,2]
[327464949,1716085856157,-500.0,0.00028219,2]
[327464950,1716085856167,-500.0,0.00028219,2]
[327464951,1716085856177,-679.69,0.00028219,2]
[327464952,1716085856187,-500.0,0.00028219,2]
[327464953,1716085856197,-500.0,0.00028219,2]
[327464954,1716085856206,-500.0,0.00028219,2]
[327464955,1716085856215,-500.0,0.00028219,2]
[327464956,1716085856224,-757.0,0.00028219,2]
[327464957,1716085856234,-986.68,0.00028219,2]
[327464958,1716085856244,-165.77272981,0.00028219,2]
[327464959,1716085856253,-1095.82,0.00028219,2]
[327464960,1716085856263,-500.0,0.00028219,2]
[327464961,1716085856272,-500.0,0.00028219,2]
[327464962,1716085856281,-1045.42,0.00028219,2]
[327464963,1716085856291,-634.84,0.00028219,2]
[327464964,1716085856300,-564.16,0.00028219,2]
[327464965,1716085856309,-500.0,0.00028219,2]
[327464966,1716085856319,-1005.81,0.00028219,2]
[327464967,1716085856328,-500.0,0.00028219,2]
[327464968,1716085856338,-1148.74,0.00028219,2]
[327464969,1716085856347,-863.33,0.00028219,2]
[327464970,1716085856357,-1540.44,0.00028219,2]
[327464971,1716085856366,-1101.78,0.00028219,2]
[327464972,1716085856375,-500.0,0.00028219,2]
[327464973,1716085856384,-500.0,0.00028219,2]
[327464974,1716085856393,-518.34,0.00028219,2]
[327464975,1716085856402,-631.39723799,0.00028219,2]
[327464976,1716085856412,-437.96800097,0.00028219,2]
[327464977,1716085856421,-1055.9,0.00028219,2]
[327464978,1716085856431,-151.0,0.00028219,7]
[327464979,1716085856440,-500.0,0.00028219,2]
[327464980,1716085856450,-611.2,0.00028219,2]
[327464981,1716085856459,-301.134477,0.00028219,7]
[327464982,1716085856468,-500.0,0.00028219,2]
[327464983,1716085856478,-500.0,0.00028219,2]
[327464984,1716085856487,-519.9,0.00028219,2]
[327464985,1716085856501,-845.3,0.00028219,2]
[327464986,1716085856510,-500.0,0.00028219,2]
[327464987,1716085856520,-500.0,0.00028219,2]
[327464988,1716085856529,-500.0,0.00028219,2]
[327464989,1716085856541,-1331.68,0.00028219,2]
[327464990,1716085856550,-515.85,0.00028219,2]
[327464991,1716085856559,-500.0,0.00028219,2]
[327464992,1716085856569,-764.74,0.00028219,2]
[327464993,1716085856579,-766.32,0.00028219,2]
[327464994,1716085856588,-500.0,0.00028219,2]
[327464995,1716085856598,-500.0,0.00028219,2]
[327464996,1716085856607,-500.0,0.00028219,2]
[327464997,1716085856616,-500.0,0.00028219,2]
[327464998,1716085856626,-500.0,0.00028219,2]
[327464999,1716085856635,-600.54,0.00028219,2]
[327465000,1716085856645,-1277.87,0.00028219,2]
[327465001,1716085856655,-500.0,0.00028219,2]